bitfinex/quotes_BTCUSD_20251024
["timestamp","ask_amount","ask_price","bid_price","bid_amount"]
[1761264934199,0.52275007,110330.0,110320.0,0.005]
[1761264934425,0.54227061,110330.0,110320.0,0.005]
[1761264934840,0.54227061,110330.0,110320.0,0.004]
[1761264935055,0.54127061,110330.0,110320.0,0.004]
[1761264935283,0.54127061,110330.0,110320.0,0.005]
[1761264935486,0.54227061,110330.0,110320.0,0.005]
[1761264935710,0.54227061,110330.0,110320.0,0.004]
[1761264944680,0.70227061,110330.0,110320.0,0.004]
[1761264945293,0.49449311,110330.0,110320.0,0.004]
[1761264945438,0.67576746,110330.0,110320.0,0.004]
[1761264948178,0.65624692,110330.0,110320.0,0.004]
[1761264948851,0.49624692,110330.0,110320.0,0.004]
[1761264951048,0.49624692,110330.0,110320.0,0.2751098]
[1761264951268,0.31483546,110330.0,110320.0,0.2751098]
[1761264951671,0.001,110330.0,110320.0,0.2751098]
[1761264951881,0.001,110330.0,110320.0,0.4351098]
[1761264952294,0.001,110330.0,110320.0,0.52933208]
[1761264953398,0.001,110330.0,110320.0,0.53033208]
[1761264954197,0.53030585,110350.0,110340.0,0.18125793]
[1761264954429,0.20982818,110350.0,110340.0,0.18125793]
[1761264954606,0.21051377,110350.0,110340.0,0.18125793]
[1761264954835,0.19099144,110350.0,110340.0,0.18125793]
[1761264955271,0.21051633,110350.0,110340.0,0.18125793]
[1761264955480,0.20245198,110350.0,110340.0,0.18125793]
[1761264955694,0.20245198,110350.0,110330.0,0.18125943]
[1761264955907,0.20176639,110350.0,110340.0,0.18125793]
[1761264958105,0.02052489,110350.0,110340.0,0.18125793]
[1761264958311,0.001,110350.0,110340.0,0.18125793]
[1761264958514,0.18292709,110350.0,110340.0,0.18125793]
[1761264959607,0.18125793,110340.0,110330.0,0.27107844]
[1761264960132,0.1822415,110350.0,110340.0,0.18125793]
[1761264960376,0.001,110350.0,110340.0,0.27107694]
[1761264960580,0.001,110350.0,110340.0,0.43107694]
[1761264960810,0.54146408,110360.0,110350.0,0.1812415]
[1761264960811,0.20146408,110360.0,110350.0,0.1812415]
[1761264961007,0.22099322,110360.0,110350.0,0.27106051]
[1761264961118,0.22099322,110360.0,110350.0,0.08981901]
[1761264961709,0.18125296,110350.0,110330.0,0.18227059]
[1761264961835,0.2007821,110350.0,110340.0,0.43107694]
[1761264962040,0.20077064,110350.0,110340.0,0.43107694]
[1761264962270,0.01952914,110350.0,110340.0,0.43107694]
[1761264962490,0.1812415,110350.0,110340.0,0.43107694]
[1761264962693,0.20077064,110350.0,110340.0,0.43107694]
[1761264962895,0.1812415,110350.0,110340.0,0.43107694]
[1761264963649,0.21227467,110360.0,110340.0,0.43107694]
[1761264963815,0.1822415,110350.0,110340.0,0.43107694]
[1761264963994,0.1812415,110350.0,110340.0,0.43107694]
[1761264964197,0.21227467,110360.0,110340.0,0.43107694]
[1761264964399,0.001,110350.0,110340.0,0.43107694]
[1761264965675,0.1822415,110350.0,110340.0,0.43107694]
[1761264966079,0.18292709,110350.0,110340.0,0.43107694]
[1761264966997,0.00168559,110350.0,110340.0,0.43107694]
[1761264967430,0.18292709,110350.0,110340.0,0.43107694]
[1761264969104,0.18292709,110350.0,110340.0,0.43103694]
[1761264969745,0.18292709,110350.0,110340.0,0.08981901]
[1761264969959,0.18292709,110350.0,110340.0,0.24977901]
[1761264971814,0.18292709,110350.0,110340.0,0.43103694]
[1761264973268,0.20245154,110350.0,110340.0,0.43103694]
[1761264973682,0.18292709,110350.0,110340.0,0.43103694]
[1761264973896,0.18292709,110350.0,110340.0,0.24977901]
[1761264974105,0.18292709,110350.0,110340.0,0.43103694]
[1761264976202,0.18292709,110350.0,110340.0,0.24977901]
[1761264976424,0.20246067,110350.0,110340.0,0.24977901]
[1761264977269,0.20246127,110350.0,110340.0,0.24977901]
[1761264978543,0.20246127,110350.0,110340.0,0.43103694]
[1761264979105,0.20246127,110350.0,110340.0,0.24977901]
[1761264980499,0.20246127,110350.0,110340.0,0.43103694]
[1761264980915,0.20246127,110350.0,110340.0,0.24977901]
[1761264981407,0.20614203,110360.0,110340.0,0.24977901]
[1761264981614,0.1812415,110350.0,110340.0,0.24977901]
[1761264981857,0.1812415,110350.0,110340.0,0.08981901]
[1761264982071,0.1812415,110350.0,110340.0,0.24977901]
[1761264983560,0.18126887,110340.0,110320.0,0.2305376]
[1761264983779,0.18127435,110330.0,110320.0,0.3331098]
[1761264983982,0.18127435,110330.0,110320.0,0.4930698]
[1761264984617,0.18127435,110330.0,110320.0,0.31177901]
[1761264985247,0.18127435,110330.0,110320.0,0.25477901]
[1761264985384,0.18127435,110330.0,110320.0,0.09481901]
[1761264985595,0.18127435,110330.0,110320.0,0.25477901]
[1761264986015,0.18127435,110330.0,110320.0,0.25677901]
[1761264986403,0.18127435,110330.0,110320.0,0.25477901]
[1761264986602,0.18127435,110330.0,110320.0,0.25677901]
[1761264986863,0.18127435,110330.0,110320.0,0.25577901]
[1761264987064,0.18127435,110330.0,110320.0,0.25377901]
[1761264987305,0.18127435,110330.0,110320.0,0.25477901]
[1761264987652,0.18127435,110330.0,110320.0,0.25377901]
[1761264987853,0.18127435,110330.0,110320.0,0.25477901]
[1761264988253,0.18127435,110330.0,110320.0,0.09481901]
[1761264988458,0.18127435,110330.0,110320.0,0.25477901]
[1761264988653,0.18127435,110330.0,110320.0,0.09481901]
[1761264988864,0.18127435,110330.0,110320.0,0.25477901]
[1761264991693,0.22057022,110360.0,110330.0,0.18127435]
[1761264991904,0.19615249,110360.0,110340.0,0.43103621]
[1761264993447,0.21568836,110360.0,110340.0,0.43103621]
[1761264994082,0.1812415,110350.0,110340.0,0.24977901]
[1761264994290,0.20077761,110350.0,110340.0,0.08981901]
[1761264995367,0.20077761,110350.0,110340.0,0.27107694]
[1761264995997,0.36073761,110350.0,110340.0,0.27107694]
[1761264996207,0.36073761,110350.0,110340.0,0.27207694]
[1761264997789,0.36073761,110350.0,110340.0,0.09081901]
[1761264998855,0.70073761,110350.0,110340.0,0.001]
[1761264999254,0.72515534,110350.0,110340.0,0.001]
[1761264999854,0.18127435,110330.0,110320.0,0.35430631]
[1761265000024,0.18127435,110330.0,110320.0,0.44412532]
[1761265001626,0.18127435,110330.0,110320.0,0.44512532]
[1761265002506,0.18127435,110330.0,110320.0,0.44712532]
[1761265003112,0.18127435,110330.0,110320.0,0.4380698]
[1761265003872,0.18127435,110330.0,110320.0,0.25677901]
[1761265004512,0.18127435,110330.0,110320.0,0.4380698]
[1761265004919,0.18127435,110330.0,110320.0,0.25677901]
[1761265005128,0.18127435,110330.0,110320.0,0.4380698]
[1761265005338,0.18127435,110330.0,110320.0,0.25677901]
[1761265006322,0.18127435,110330.0,110320.0,0.4380698]
[1761265006522,0.18127435,110330.0,110320.0,0.09681901]
[1761265006728,0.36077437,110330.0,110320.0,0.007]
[1761265006949,0.70077437,110330.0,110320.0,0.007]
[1761265007352,0.70077437,110330.0,110320.0,0.006]
[1761265008564,0.70077437,110330.0,110320.0,0.004]
[1761265008765,0.70077437,110330.0,110320.0,0.005]
[1761265015099,0.7251921,110330.0,110320.0,0.005]
[1761265018225,0.70077437,110330.0,110320.0,0.005]
[1761265019745,0.72992615,110330.0,110320.0,0.005]
[1761265020008,0.78796615,110330.0,110320.0,0.005]
[1761265020231,0.91042523,110330.0,110320.0,0.005]
[1761265020444,0.93766083,110330.0,110320.0,0.005]
[1761265020654,0.9132431,110330.0,110320.0,0.005]
[1761265020860,0.9132431,110330.0,110320.0,0.004]
[1761265021074,0.93765308,110330.0,110320.0,0.004]
[1761265021521,0.95663849,110330.0,110320.0,0.004]
[1761265021747,0.97442421,110330.0,110320.0,0.004]
[1761265021964,0.94738933,110330.0,110320.0,0.004]
[1761265022174,0.89838875,110330.0,110320.0,0.004]
[1761265022613,0.18129079,110320.0,110310.0,0.004]
[1761265022833,0.38977416,110320.0,110310.0,0.00413284]
[1761265023071,0.40813861,110320.0,110310.0,0.00413284]
[1761265023949,0.47776719,110320.0,110310.0,0.00413284]
[1761265025455,0.81776719,110320.0,110310.0,0.00413284]
[1761265025880,0.74813861,110320.0,110310.0,0.00413284]
[1761265026097,0.52132366,110300.0,110290.0,0.00643877]
[1761265026318,0.75895249,110300.0,110290.0,0.00643877]
[1761265027183,0.78334443,110300.0,110290.0,0.00643877]
[1761265030951,0.75895249,110300.0,110290.0,0.00643877]
[1761265031808,0.54091249,110300.0,110290.0,0.00643877]
[1761265032027,0.35958883,110300.0,110290.0,0.18777887]
[1761265032229,0.68137247,110300.0,110290.0,0.00643877]
[1761265032651,0.68137247,110300.0,110290.0,0.18777887]
[1761265032867,0.68137247,110300.0,110290.0,0.00643877]
[1761265034155,0.34137247,110300.0,110290.0,0.18777887]
[1761265035025,0.34137247,110300.0,110290.0,0.18877887]
[1761265036647,0.34137247,110300.0,110290.0,0.27859788]
[1761265036867,4.881e-05,110300.0,110290.0,0.27859788]
[1761265037695,0.18137247,110300.0,110290.0,0.27859788]
[1761265038943,0.18137247,110300.0,110290.0,0.09725778]
[1761265039154,0.20088905,110300.0,110290.0,0.09725778]
[1761265039564,0.20088905,110300.0,110290.0,0.27859788]
[1761265041199,0.20088905,110300.0,110290.0,0.09725778]
[1761265047813,0.20088905,110300.0,110290.0,0.00743877]
[1761265048018,0.01956539,110300.0,110290.0,0.18877887]
[1761265048222,4.881e-05,110300.0,110290.0,0.31478016]
[1761265048632,0.16004881,110300.0,110290.0,0.31478016]
[1761265048973,4.881e-05,110300.0,110290.0,0.31478016]
[1761265049379,0.16004881,110300.0,110290.0,0.31478016]
[1761265049591,0.16004881,110300.0,110290.0,0.34200901]
[1761265050035,0.16004881,110300.0,110290.0,0.31478016]
[1761265050597,4.881e-05,110300.0,110290.0,0.31478016]
[1761265050799,0.16004881,110300.0,110290.0,0.31478016]
[1761265051000,4.881e-05,110300.0,110290.0,0.31478016]
[1761265051292,4.881e-05,110300.0,110290.0,0.31378016]
[1761265051484,4.881e-05,110300.0,110290.0,0.31478016]
[1761265051622,4.881e-05,110300.0,110290.0,0.31678016]
[1761265052248,4.881e-05,110300.0,110290.0,0.31478016]
[1761265052484,4.881e-05,110300.0,110290.0,0.31378016]
[1761265052619,4.881e-05,110300.0,110290.0,0.31978016]
[1761265053464,0.23320383,110320.0,110310.0,0.18130722]
[1761265053668,0.39325267,110320.0,110310.0,0.27112623]
[1761265054880,0.39325267,110320.0,110310.0,0.09281901]
[1761265055799,0.41277874,110320.0,110310.0,0.09281901]
[1761265055999,0.41277874,110320.0,110310.0,0.08981901]
[1761265056401,0.41277874,110320.0,110310.0,0.09081901]
[1761265058596,0.41277874,110320.0,110310.0,0.001]
[1761265058792,0.75277874,110320.0,110310.0,0.001]
[1761265059668,0.18132366,110300.0,110290.0,0.00643877]
[1761265059888,0.34128366,110300.0,110290.0,0.09625778]
[1761265061384,0.34128366,110300.0,110290.0,0.09825778]
[1761265062314,0.34128366,110300.0,110290.0,0.09925778]
[1761265072537,0.36083211,110300.0,110290.0,0.09925778]
[1761265075414,0.36083211,110300.0,110290.0,0.28059788]
[1761265076295,0.36083211,110300.0,110290.0,0.09925778]
[1761265076520,0.36083211,110300.0,110290.0,0.28059788]
[1761265076745,0.36083211,110300.0,110290.0,0.09925778]
[1761265077846,0.20087211,110300.0,110290.0,0.09925778]
[1761265078035,0.36083211,110300.0,110290.0,0.09925778]
[1761265080452,0.36083211,110300.0,110290.0,0.00943877]
[1761265081381,0.36083211,110300.0,110290.0,0.00743877]
[1761265081654,0.36083211,110300.0,110290.0,0.00843877]
[1761265081877,0.36083211,110300.0,110290.0,0.00743877]
[1761265085580,0.38526319,110300.0,110290.0,0.00743877]
[1761265086569,0.3933547,110300.0,110290.0,0.00743877]
[1761265086761,0.44215787,110300.0,110290.0,0.00643877]
[1761265087177,0.74963528,110300.0,110290.0,0.00643877]
[1761265088393,0.78223587,110300.0,110290.0,0.00643877]
[1761265092622,0.87205488,110300.0,110290.0,0.00643877]
[1761265092841,0.58967528,110300.0,110290.0,0.00643877]
[1761265093045,0.79618326,110300.0,110290.0,0.00643877]
[1761265093223,0.84498643,110300.0,110290.0,0.00643877]
[1761265093437,0.79618326,110300.0,110290.0,0.00643877]
[1761265093687,0.76366813,110300.0,110290.0,0.00643877]
[1761265094448,0.70566813,110300.0,110290.0,0.00643877]
[1761265094713,0.76370813,110300.0,110290.0,0.00643877]
[1761265102243,0.54566813,110300.0,110290.0,0.00643877]
[1761265102462,0.76370813,110300.0,110290.0,0.00643877]
[1761265102671,0.60370813,110300.0,110290.0,0.00643877]
[1761265102874,0.39936366,110300.0,110290.0,0.00643877]
[1761265103083,0.73936366,110300.0,110290.0,0.00643877]
[1761265104107,0.68132366,110300.0,110290.0,0.00643877]
[1761265104620,0.52132366,110300.0,110290.0,0.00643877]
[1761265104818,0.68132366,110300.0,110290.0,0.00643877]
[1761265105627,0.52132366,110300.0,110290.0,0.00643877]
[1761265105829,0.68132366,110300.0,110290.0,0.00643877]
[1761265106471,0.68128366,110300.0,110290.0,0.18777887]
[1761265106671,0.68128366,110300.0,110290.0,0.00643877]
[1761265107229,0.68128366,110300.0,110290.0,0.18777887]
[1761265108218,0.68128366,110300.0,110290.0,0.27759788]
[1761265108433,0.44523117,110310.0,110290.0,0.27759788]
[1761265108634,0.34128366,110300.0,110290.0,0.27759788]
[1761265108875,0.36082847,110300.0,110290.0,0.27759788]
[1761265110134,0.36082847,110300.0,110290.0,0.27859788]
[1761265111418,0.34128366,110300.0,110290.0,0.27859788]
[1761265111634,0.18132366,110300.0,110290.0,0.27859788]
[1761265115916,0.58076424,110310.0,110290.0,0.27859788]
[1761265116134,0.60030121,110310.0,110290.0,0.27859788]
[1761265116975,0.60030121,110310.0,110290.0,0.27759788]
[1761265118508,0.25901905,110310.0,110300.0,0.27114267]
[1761265118729,0.01953697,110310.0,110300.0,0.27114267]
[1761265118974,0.01958047,110320.0,110310.0,0.18130722]
[1761265119189,0.18133963,110320.0,110310.0,0.27112623]
[1761265119395,0.01957998,110320.0,110310.0,0.27112623]
[1761265119598,4.884e-05,110320.0,110310.0,0.27112623]
[1761265120444,4.884e-05,110320.0,110310.0,0.27212623]
[1761265120654,0.18133963,110320.0,110310.0,0.27212623]
[1761265122913,4.884e-05,110320.0,110310.0,0.27212623]
[1761265123323,0.18133963,110320.0,110310.0,0.27212623]
[1761265125014,0.20085064,110320.0,110310.0,0.27212623]
[1761265125279,4.884e-05,110320.0,110310.0,0.27212623]
[1761265126104,0.18133963,110320.0,110310.0,0.27212623]
[1761265126518,4.884e-05,110320.0,110310.0,0.27212623]
[1761265129407,4.884e-05,110320.0,110310.0,0.29935384]
[1761265130235,4.884e-05,110320.0,110310.0,0.29835384]
[1761265130457,4.884e-05,110320.0,110310.0,0.30135384]
[1761265131077,4.884e-05,110320.0,110310.0,0.30235384]
[1761265141024,4.884e-05,110320.0,110310.0,0.33853612]
[1761265143710,4.884e-05,110320.0,110310.0,0.70804314]
[1761265143926,4.884e-05,110320.0,110310.0,0.73545075]
[1761265144324,4.884e-05,110320.0,110310.0,0.73245075]
[1761265144534,4.884e-05,110320.0,110310.0,0.70804314]
[1761265144759,4.884e-05,110320.0,110310.0,0.89845612]
[1761265145178,4.884e-05,110320.0,110310.0,1.09845612]
[1761265147287,0.05037444,110360.0,110310.0,1.09845612]
[1761265147494,1e-08,110390.0,110360.0,0.18122508]
[1761265147694,0.06956895,110430.0,110420.0,0.21730888]
[1761265147899,0.06956895,110430.0,110420.0,0.52600789]
[1761265147900,0.0046884,110430.0,110420.0,0.52600789]
[1761265149555,0.0046884,110430.0,110420.0,0.86600789]
[1761265149968,0.0046884,110430.0,110420.0,0.86200789]
[1761265150175,0.0046884,110430.0,110420.0,1.06100789]
[1761265150385,0.0046884,110430.0,110420.0,1.06400789]
[1761265150598,0.0046884,110430.0,110420.0,1.06500789]
[1761265151014,0.0046884,110430.0,110420.0,1.00708789]
[1761265151227,0.0046884,110430.0,110420.0,1.06408789]
[1761265151444,0.0046884,110430.0,110420.0,0.84512789]
[1761265151656,0.0046884,110430.0,110420.0,1.08071772]
[1761265152073,0.0046884,110430.0,110420.0,1.07771772]
[1761265152281,0.0046884,110430.0,110420.0,1.08171772]
[1761265152701,0.0046884,110430.0,110420.0,1.08371772]
[1761265153518,0.0046884,110430.0,110420.0,1.083678]
[1761265153930,0.0070859,110430.0,110420.0,1.083678]
[1761265154755,0.0070859,110430.0,110420.0,0.864758]
[1761265154965,0.0070859,110430.0,110420.0,1.083638]
[1761265155810,0.0070859,110430.0,110420.0,0.883638]
[1761265156497,0.0070859,110430.0,110420.0,0.8907239]
[1761265157745,0.17737169,110480.0,110460.0,0.18106101]
[1761265157955,0.18104512,110470.0,110460.0,0.43168002]
[1761265158370,0.1824142,110470.0,110460.0,0.43168002]
[1761265158999,0.19146643,110470.0,110460.0,0.43168002]
[1761265159411,0.19146643,110470.0,110460.0,0.42668002]
[1761265159619,0.19146643,110470.0,110460.0,0.42768002]
[1761265161076,0.00136908,110470.0,110460.0,0.42768002]
[1761265163288,0.00136908,110470.0,110460.0,0.5218223]
[1761265164314,0.00136908,110470.0,110460.0,0.8618223]
[1761265164540,0.00136908,110470.0,110460.0,0.88838645]
[1761265164541,1e-08,110470.0,110460.0,0.88838645]
[1761265164755,1e-08,110470.0,110460.0,0.87738478]
[1761265164973,1e-08,110470.0,110460.0,0.66562478]
[1761265165177,1e-08,110470.0,110460.0,0.88882478]
[1761265165385,1e-08,110470.0,110460.0,0.88282478]
[1761265165808,1e-08,110470.0,110460.0,0.88882478]
[1761265166213,1e-08,110470.0,110460.0,0.88682478]
[1761265166422,1e-08,110470.0,110460.0,0.88882478]
[1761265167255,0.00014654,110480.0,110460.0,0.88882478]
[1761265167256,1e-08,110480.0,110460.0,0.88882478]
[1761265167471,1e-08,110480.0,110470.0,0.66515037]
[1761265167688,1e-08,110480.0,110470.0,0.66360839]
[1761265169044,1e-08,110480.0,110470.0,0.66660839]
[1761265169285,1e-08,110480.0,110470.0,0.66860839]
[1761265169533,1e-08,110480.0,110470.0,0.88768839]
[1761265169744,1e-08,110480.0,110470.0,0.29242611]
[1761265169967,1e-08,110480.0,110470.0,0.51154611]
[1761265171272,1e-08,110480.0,110470.0,0.53116591]
[1761265171496,1e-08,110480.0,110470.0,0.54776098]
[1761265171705,1e-08,110480.0,110470.0,0.53116591]
[1761265172220,1e-08,110480.0,110470.0,0.52916591]
[1761265172428,0.18102825,110480.0,110470.0,0.34512129]
[1761265172636,0.18102825,110480.0,110470.0,0.53016591]
[1761265172637,1e-08,110480.0,110470.0,0.53016591]
[1761265173044,0.00034218,110480.0,110470.0,0.53016591]
[1761265173865,0.00034218,110480.0,110470.0,0.52616591]
[1761265174234,0.00034218,110480.0,110470.0,0.53016591]
[1761265175530,0.00034218,110480.0,110470.0,0.54684226]
[1761265181259,0.18137042,110480.0,110470.0,0.54684226]
[1761265181470,0.18137042,110480.0,110470.0,0.51075016]
[1761265181689,0.00034218,110480.0,110470.0,0.51075016]
[1761265181929,0.00034218,110480.0,110470.0,0.54693244]
[1761265190115,0.00034218,110480.0,110470.0,0.74693244]
[1761265193211,0.00034218,110480.0,110470.0,0.77104139]
[1761265193842,0.00034218,110480.0,110470.0,0.77004139]
[1761265194077,0.00034218,110480.0,110470.0,0.76904139]
[1761265194455,0.00034218,110480.0,110470.0,0.77304139]
[1761265197142,0.00034218,110480.0,110470.0,0.80525213]
[1761265198724,0.00034218,110480.0,110470.0,0.78114318]
[1761265200891,0.00034218,110480.0,110470.0,0.8053541]
[1761265201144,0.00034218,110480.0,110470.0,0.77286336]
[1761265202196,0.00034218,110480.0,110470.0,1.11286336]
[1761265202404,0.00034218,110480.0,110470.0,1.1450741]
[1761265203054,0.00034218,110480.0,110470.0,1.12086318]
[1761265203890,0.00034218,110480.0,110470.0,1.16917929]
[1761265204102,0.00034218,110480.0,110470.0,1.12086318]
[1761265204332,0.00034218,110480.0,110470.0,1.16917929]
[1761265205209,0.00034218,110480.0,110470.0,1.13696855]
[1761265206106,0.00034218,110480.0,110470.0,1.00630914]
[1761265206321,0.00034218,110480.0,110470.0,1.14111064]
[1761265206541,0.00034218,110480.0,110470.0,1.14411064]
[1761265208554,0.00034218,110480.0,110470.0,1.11185005]
[1761265211101,0.00034218,110480.0,110470.0,0.49263016]
[1761265211320,0.00034218,110480.0,110470.0,0.71139016]
[1761265212159,0.00034218,110480.0,110470.0,0.74557244]
[1761265212369,0.00034218,110480.0,110470.0,0.74657244]
[1761265212791,0.00034218,110480.0,110470.0,0.74257244]
[1761265213014,0.00034218,110480.0,110470.0,0.74557244]
[1761265213232,0.00034218,110480.0,110470.0,0.74657244]
[1761265213438,0.00034218,110480.0,110470.0,0.74357244]
[1761265213664,0.00034218,110480.0,110470.0,0.31058554]
[1761265213665,0.18137042,110480.0,110470.0,0.31058554]
[1761265213905,0.18137042,110480.0,110470.0,0.65243016]
[1761265214119,0.18137042,110480.0,110470.0,0.47138554]
[1761265214750,0.18137042,110480.0,110470.0,0.65243016]
[1761265215393,0.18137042,110480.0,110470.0,0.47138554]
[1761265215603,0.18137042,110480.0,110470.0,0.27138554]
[1761265216034,0.18137042,110480.0,110470.0,0.45243016]
[1761265216262,0.18137042,110480.0,110470.0,0.27038554]
[1761265216492,0.18137042,110480.0,110470.0,0.44843016]
[1761265216913,0.17653012,110490.0,110470.0,0.45043016]
[1761265217129,0.18102824,110480.0,110470.0,0.45043016]
[1761265217564,0.18102824,110480.0,110470.0,0.45143016]
[1761265218064,0.18102824,110480.0,110470.0,0.45043016]
[1761265218271,0.18102824,110480.0,110470.0,0.45143016]
[1761265218485,0.18102824,110480.0,110470.0,0.27038554]
[1761265220674,0.18102824,110480.0,110470.0,0.10958554]
[1761265220889,0.18102824,110480.0,110470.0,0.27034554]
[1761265227370,0.18102824,110480.0,110470.0,0.27037228]
[1761265231212,10.59015275,110500.0,110480.0,0.18102824]
[1761265231459,10.59015275,110500.0,110490.0,0.25041901]
[1761265231670,10.59015275,110500.0,110490.0,0.26721228]
[1761265231887,10.59015275,110500.0,110490.0,0.44822413]
[1761265232097,10.59015275,110500.0,110490.0,0.26721228]
[1761265232765,10.59015275,110500.0,110490.0,0.44822413]
[1761265232766,10.5811006,110500.0,110490.0,0.44822413]
[1761265232997,10.5811006,110500.0,110490.0,0.44922413]
[1761265233767,10.40010513,110500.0,110490.0,0.44822413]
[1761265233954,10.5811006,110500.0,110490.0,0.44822413]
[1761265234377,10.40010513,110500.0,110490.0,0.44922413]
[1761265235082,10.40010513,110500.0,110490.0,0.45122413]
[1761265236151,10.4,110500.0,110490.0,0.45122413]
[1761265238314,10.4,110500.0,110490.0,0.50914413]
[1761265240525,10.4,110500.0,110490.0,0.54532641]
[1761265241644,10.4,110500.0,110490.0,0.74532641]
[1761265241864,10.4,110500.0,110490.0,1.08332641]
[1761265242312,10.4006842,110500.0,110490.0,1.09502781]
[1761265242532,10.4006842,110500.0,110490.0,1.12022542]
[1761265242752,10.4006842,110500.0,110490.0,1.14278461]
[1761265242973,10.4006842,110500.0,110490.0,1.10648402]
[1761265243192,10.4006842,110500.0,110490.0,0.60592402]
[1761265243419,10.4006842,110500.0,110490.0,0.77248402]
[1761265243630,10.4006842,110500.0,110490.0,0.74428641]
[1761265243839,10.4006842,110500.0,110490.0,0.74228641]
[1761265244055,10.4006842,110500.0,110490.0,0.74428641]
[1761265244261,10.4006842,110500.0,110490.0,0.58372641]
[1761265244477,10.4006842,110500.0,110490.0,0.52580641]
[1761265244659,10.4006842,110500.0,110490.0,0.74432641]
[1761265245205,10.4006842,110500.0,110490.0,0.49362413]
[1761265245421,10.58167967,110500.0,110490.0,0.71214413]
[1761265245629,10.58167967,110500.0,110490.0,0.31261228]
[1761265245835,10.58167967,110500.0,110490.0,0.47321228]
[1761265246048,10.58167967,110500.0,110490.0,0.45641901]
[1761265246322,10.58167967,110500.0,110490.0,0.25441901]
[1761265246540,10.58167967,110500.0,110490.0,0.25445901]
[1761265246753,10.58167967,110500.0,110490.0,0.25145901]
[1761265247196,10.58167967,110500.0,110490.0,0.25045901]
[1761265247857,0.18102319,110490.0,110470.0,0.19009685]
[1761265248076,0.18102824,110480.0,110470.0,0.24801685]
[1761265248290,0.18102824,110480.0,110470.0,0.35073685]
[1761265248543,0.18102824,110480.0,110470.0,0.16064]
[1761265248977,0.18102824,110480.0,110470.0,0.34168462]
[1761265249189,0.18102824,110480.0,110470.0,0.43250363]
[1761265249402,0.18102824,110480.0,110470.0,0.43450363]
[1761265252467,0.18102824,110480.0,110470.0,0.25345901]
[1761265252668,0.18102824,110480.0,110470.0,0.43450363]
[1761265253092,0.18102319,110490.0,110470.0,0.43450363]
[1761265253311,0.18102824,110480.0,110470.0,0.34468462]
[1761265254458,0.18102824,110480.0,110470.0,0.34368462]
[1761265255507,0.18136532,110490.0,110470.0,0.34368462]
[1761265255717,0.18136532,110490.0,110470.0,0.34468462]
[1761265255940,0.18136532,110490.0,110480.0,0.08981901]
[1761265257437,0.18136532,110490.0,110480.0,0.27084725]
[1761265257668,0.18136532,110490.0,110480.0,0.08981901]
[1761265258529,0.18136532,110490.0,110480.0,0.09081901]
[1761265259908,0.18135398,110490.0,110480.0,0.28995007]
[1761265260119,0.18135398,110490.0,110480.0,0.27184725]
[1761265260554,0.18135398,110490.0,110480.0,0.09081901]
[1761265260962,0.18135398,110490.0,110480.0,0.08981901]
[1761265261230,0.18135398,110490.0,110480.0,0.09281901]
[1761265265233,0.18135398,110490.0,110480.0,0.25321901]
[1761265266332,0.16635398,110490.0,110480.0,0.25321901]
[1761265266752,0.16635398,110490.0,110480.0,0.25221901]
[1761265266961,0.16635398,110490.0,110480.0,0.25021901]
[1761265267385,0.16635398,110490.0,110480.0,0.25121901]
[1761265271667,0.66671398,110490.0,110480.0,0.001]
[1761265271877,0.75653299,110490.0,110480.0,0.001]
[1761265272737,0.66671398,110490.0,110480.0,0.001]
[1761265272945,0.75653299,110490.0,110480.0,0.001]
[1761265273176,0.18106101,110460.0,110450.0,0.06304]
[1761265273388,0.18106101,110460.0,110450.0,0.15300555]
[1761265273598,0.52106101,110460.0,110450.0,0.08996555]
[1761265274626,0.52106101,110460.0,110450.0,0.09296555]
[1761265278446,0.53066372,110460.0,110450.0,0.09296555]
[1761265278873,0.52106101,110460.0,110450.0,0.09296555]
[1761265281767,0.52106101,110460.0,110450.0,0.00314654]
[1761265286491,0.34,110460.0,110450.0,0.09296555]
[1761265286722,0.68130101,110460.0,110450.0,0.09296555]
[1761265287383,0.52106101,110460.0,110450.0,0.09296555]
[1761265289437,0.18106101,110460.0,110450.0,0.09296555]
[1761265294235,0.18104462,110470.0,110450.0,0.2921507]
[1761265294445,0.52104462,110470.0,110460.0,0.25009901]
[1761265294659,0.18104462,110470.0,110460.0,0.43116002]
[1761265294870,0.19010809,110480.0,110470.0,0.18104462]
[1761265295077,0.19010809,110480.0,110470.0,0.27086363]
[1761265295507,0.16635398,110490.0,110470.0,0.27086363]
[1761265295711,0.18102824,110480.0,110470.0,0.27086363]
[1761265295889,0.18102824,110480.0,110470.0,0.43118363]
[1761265296332,0.18102824,110480.0,110470.0,0.43218363]
[1761265299669,0.18102824,110480.0,110470.0,0.49014363]
[1761265304767,0.18102824,110480.0,110470.0,0.30909901]
[1761265304987,0.18102824,110480.0,110470.0,0.25097901]
[1761265307107,0.55656646,110480.0,110470.0,0.001]
[1761265307325,0.68122824,110480.0,110470.0,0.001]
[1761265309737,0.52102824,110480.0,110470.0,0.001]
[1761265311403,0.18104462,110470.0,110460.0,0.1602]
[1761265311615,0.18106101,110460.0,110450.0,0.00014654]
[1761265311830,0.18106101,110460.0,110450.0,0.30808555]
[1761265312037,0.18106101,110460.0,110450.0,0.48916296]
[1761265312405,0.18106101,110460.0,110450.0,0.30808555]
[1761265312601,0.18106101,110460.0,110450.0,0.48916296]
[1761265312806,0.18106101,110460.0,110450.0,0.31008555]
[1761265313419,0.18106101,110460.0,110450.0,0.49116296]
[1761265313879,0.18106101,110460.0,110450.0,0.25204555]
[1761265314051,0.18106101,110460.0,110450.0,0.31100555]
[1761265314257,0.18106101,110460.0,110450.0,0.25304555]
[1761265314847,0.18106101,110460.0,110450.0,0.09296555]
[1761265315057,0.18106101,110460.0,110450.0,0.25308555]
[1761265321514,0.55727572,110480.0,110460.0,0.18106101]
[1761265321731,0.18104462,110470.0,110460.0,0.16588511]
[1761265321935,0.18104462,110470.0,110460.0,0.08981901]
[1761265322414,0.18104462,110470.0,110460.0,0.4490862]
[1761265322628,0.18104462,110470.0,110460.0,0.43100002]
[1761265322841,0.18104462,110470.0,110460.0,0.43200002]
[1761265323053,0.18104462,110470.0,110460.0,0.43100002]
[1761265323266,0.18104462,110470.0,110460.0,0.48892002]
[1761265323482,0.18104462,110470.0,110460.0,0.49092002]
[1761265323698,0.18104462,110470.0,110460.0,0.49192002]
[1761265324337,0.18104462,110470.0,110460.0,0.43396002]
[1761265324548,0.18104462,110470.0,110460.0,0.31085901]
[1761265324783,0.18104462,110470.0,110460.0,0.25289901]
[1761265325811,0.18104462,110470.0,110460.0,0.43396002]
[1761265330891,0.18102824,110480.0,110470.0,0.18104462]
[1761265331127,0.18102824,110480.0,110470.0,0.34692809]
[1761265331332,0.18102824,110480.0,110470.0,0.32882363]
[1761265331544,0.18340457,110490.0,110470.0,0.32882363]
[1761265331725,0.18340457,110490.0,110480.0,0.24989901]
[1761265332191,0.18102824,110480.0,110470.0,0.16108]
[1761265332368,0.18102824,110480.0,110470.0,0.16008]
[1761265332603,0.18102824,110480.0,110470.0,0.16208]